[Event "*** Titled Tuesday 3|2 Blitz"]
[Site "Chess.com"]
[Date "2015.12.01"]
[Round "1"]
[White "ChadaevNikolay"]
[Black "Herman-NY"]
[Result "1-0"]
[WhiteElo "2551"]
[BlackElo "2235"]
[TimeControl "180+2"]
[EndTime "11:06:42 PST"]
[Termination "ChadaevNikolay won by resignation"]

1. e4 {[%clk 0:02:58.6]} 1... e5 {[%clk 0:02:43.4]} 2. Nf3 {[%clk 0:02:57]} 2...
Nc6 {[%clk 0:02:42.2]} 3. Bb5 {[%clk 0:02:57.2]} 3... Nf6 {[%clk 0:02:41]} 4. d3
{[%clk 0:02:57.5]} 4... d6 {[%clk 0:02:41.3]} 5. c3 {[%clk 0:02:56.9]} 5... Bd7
{[%clk 0:02:41.9]} 6. O-O {[%clk 0:02:57.3]} 6... g6 {[%clk 0:02:42.8]} 7. Bg5
{[%clk 0:02:57.9]} 7... Bg7 {[%clk 0:02:43.7]} 8. Nbd2 {[%clk 0:02:58.6]} 8...
O-O {[%clk 0:02:44.1]} 9. Re1 {[%clk 0:02:59.5]} 9... a6 {[%clk 0:02:35.1]} 10.
Ba4 {[%clk 0:03:00.1]} 10... b5 {[%clk 0:02:35.1]} 11. Bc2 {[%clk 0:03:00.1]}
11... Bc8 {[%clk 0:02:28.1]} 12. Nf1 {[%clk 0:02:58.5]} 12... Bb7 {[%clk
0:02:29]} 13. Ne3 {[%clk 0:02:53.2]} 13... Qe8 {[%clk 0:02:14]} 14. Qd2 {[%clk
0:02:46.9]} 14... Nb8 {[%clk 0:02:12]} 15. a4 {[%clk 0:02:45.8]} 15... Nbd7
{[%clk 0:02:12.2]} 16. b4 {[%clk 0:02:46]} 16... Kh8 {[%clk 0:01:47.9]} 17. Bb3
{[%clk 0:02:44.5]} 17... c5 {[%clk 0:01:11.3]} 18. Bc2 {[%clk 0:02:35.6]} 18...
Qc8 {[%clk 0:00:51.6]} 19. h3 {[%clk 0:02:30.9]} 19... c4 {[%clk 0:00:31.3]} 20.
Ng4 {[%clk 0:02:10.9]} 20... Nxg4 {[%clk 0:00:24.8]} 21. hxg4 {[%clk 0:02:11.2]}
21... Qc6 {[%clk 0:00:20.8]} 22. dxc4 {[%clk 0:02:11]} 22... bxc4 {[%clk
0:00:17.8]} 23. Rad1 {[%clk 0:02:11.7]} 23... f6 {[%clk 0:00:17.7]} 24. Be3
{[%clk 0:02:09.6]} 24... d5 {[%clk 0:00:17.6]} 25. Qxd5 {[%clk 0:02:05.6]} 25...
Qxd5 {[%clk 0:00:18.9]} 26. exd5 {[%clk 0:02:06.6]} 26... f5 {[%clk 0:00:18.7]}
27. gxf5 {[%clk 0:02:05.3]} 27... gxf5 {[%clk 0:00:20.6]} 28. Ng5 {[%clk
0:02:06.2]} 28... f4 {[%clk 0:00:21.7]} 29. Bc1 {[%clk 0:02:05.5]} 29... Nf6
{[%clk 0:00:22.8]} 30. d6 {[%clk 0:02:04]} 30... Ng4 {[%clk 0:00:17.7]} 31. d7
{[%clk 0:02:00.4]} 31... e4 {[%clk 0:00:13.1]} 32. Bxe4 {[%clk 0:01:58.3]} 32...
Bxc3 {[%clk 0:00:13.3]} 33. Bxb7 {[%clk 0:01:58.2]} 33... Bxe1 {[%clk
0:00:12.2]} 34. Rxe1 {[%clk 0:01:58.7]} 34... Rab8 {[%clk 0:00:13.3]} 35. Bb2+
{[%clk 0:01:59.3]} 1-0

[Event "*** Titled Tuesday 3|2 Blitz"]
[Site "Chess.com"]
[Date "2015.12.01"]
[Round "1"]
[White "DeviatkinAndrey"]
[Black "Moltini"]
[Result "1-0"]
[WhiteElo "2479"]
[BlackElo "2178"]
[TimeControl "180+2"]
[EndTime "11:06:50 PST"]
[Termination "DeviatkinAndrey won by resignation"]

1. d4 {[%clk 0:03:00.4]} 1... Nf6 {[%clk 0:03:00.6]} 2. Nf3 {[%clk 0:03:00.5]}
2... g6 {[%clk 0:03:01.7]} 3. Bg5 {[%clk 0:03:00.2]} 3... Bg7 {[%clk 0:03:02.7]}
4. e3 {[%clk 0:03:01.3]} 4... O-O {[%clk 0:03:03.8]} 5. h3 {[%clk 0:03:02.7]}
5... b6 {[%clk 0:03:05.2]} 6. Nbd2 {[%clk 0:03:02.5]} 6... Bb7 {[%clk
0:03:05.6]} 7. Bc4 {[%clk 0:03:03.5]} 7... d5 {[%clk 0:03:06.2]} 8. Bd3 {[%clk
0:03:03.1]} 8... Nbd7 {[%clk 0:03:07.3]} 9. O-O {[%clk 0:03:03]} 9... c5 {[%clk
0:03:08.5]} 10. c3 {[%clk 0:03:03.7]} 10... Rc8 {[%clk 0:03:07.9]} 11. Qe2
{[%clk 0:03:03.1]} 11... Qc7 {[%clk 0:03:08]} 12. Bf4 {[%clk 0:03:03.5]} 12...
Qd8 {[%clk 0:03:08]} 13. a4 {[%clk 0:03:03.2]} 13... a5 {[%clk 0:03:08.4]} 14.
Bb5 {[%clk 0:03:03.3]} 14... e6 {[%clk 0:03:08.2]} 15. Rfd1 {[%clk 0:02:47.4]}
15... Qe7 {[%clk 0:03:08.8]} 16. Ne5 {[%clk 0:02:35.1]} 16... Nxe5 {[%clk
0:03:09.2]} 17. Bxe5 {[%clk 0:02:35.8]} 17... c4 {[%clk 0:03:08.7]} 18. Rab1
{[%clk 0:02:32.5]} 18... Nd7 {[%clk 0:03:07.4]} 19. Bg3 {[%clk 0:02:13.5]} 19...
e5 {[%clk 0:03:05]} 20. Bxd7 {[%clk 0:02:05.4]} 20... Qxd7 {[%clk 0:03:05.7]}
21. Bxe5 {[%clk 0:02:05.5]} 21... Bxe5 {[%clk 0:03:01]} 22. dxe5 {[%clk
0:02:06.2]} 22... Qxa4 {[%clk 0:03:02.6]} 23. f4 {[%clk 0:02:00.3]} 23... Qd7
{[%clk 0:02:57.7]} 24. Ne4 {[%clk 0:02:00.1]} 24... Kg7 {[%clk 0:02:56.2]} 25.
Nf6 {[%clk 0:01:48.3]} 25... Qe6 {[%clk 0:02:54.6]} 26. Rd4 {[%clk 0:01:48.1]}
26... Rc5 {[%clk 0:02:51.6]} 27. g4 {[%clk 0:01:45.1]} 27... b5 {[%clk
0:02:49.3]} 28. Qf2 {[%clk 0:01:33.7]} 28... h6 {[%clk 0:02:49.2]} 29. Qg3
{[%clk 0:01:30.2]} 29... b4 {[%clk 0:02:43]} 30. f5 {[%clk 0:01:18.9]} 30... Qe7
{[%clk 0:02:42.7]} 31. Ne4 {[%clk 0:01:03.6]} 31... Qc7 {[%clk 0:02:32.2]} 32.
Nxc5 {[%clk 0:00:56.5]} 32... Qxc5 {[%clk 0:02:33.4]} 33. Rf1 {[%clk 0:00:56]}
33... bxc3 {[%clk 0:02:24.4]} 34. bxc3 {[%clk 0:00:55.8]} 34... Qa3 {[%clk
0:02:25.5]} 35. e6 {[%clk 0:00:50.5]} 35... Qxc3 {[%clk 0:02:20.8]} 36. e7
{[%clk 0:00:39.7]} 36... Re8 {[%clk 0:02:21.1]} 37. fxg6 {[%clk 0:00:31.2]}
37... Rxe7 {[%clk 0:02:21.4]} 38. Rxf7+ {[%clk 0:00:30.4]} 38... Rxf7 {[%clk
0:02:22.3]} 39. gxf7 {[%clk 0:00:31.3]} 39... Kxf7 {[%clk 0:02:11.7]} 40. Qf4+
{[%clk 0:00:27.5]} 40... Ke7 {[%clk 0:02:11.9]} 41. Qe5+ {[%clk 0:00:27.2]}
41... Kf7 {[%clk 0:02:08.6]} 42. Rf4+ {[%clk 0:00:28]} 42... Kg6 {[%clk
0:02:09.1]} 43. Qxc3 {[%clk 0:00:28.8]} 1-0

[Event "*** Titled Tuesday 3|2 Blitz"]
[Site "Chess.com"]
[Date "2015.12.01"]
[Round "1"]
[White "KnightSeeSix"]
[Black "olomi007"]
[Result "0-1"]
[WhiteElo "2120"]
[BlackElo "2430"]
[TimeControl "180+2"]
[EndTime "11:06:51 PST"]
[Termination "olomi007 won by resignation"]

1. d4 {[%clk 0:03:01.9]} 1... Nf6 {[%clk 0:03:00.5]} 2. c4 {[%clk 0:03:02.1]}
2... d6 {[%clk 0:03:01.8]} 3. Nc3 {[%clk 0:03:02.7]} 3... Nbd7 {[%clk
0:03:02.4]} 4. Nf3 {[%clk 0:03:02.4]} 4... e5 {[%clk 0:03:03.6]} 5. e3 {[%clk
0:03:00.2]} 5... g6 {[%clk 0:03:04.2]} 6. Bd3 {[%clk 0:03:00.3]} 6... Bg7 {[%clk
0:03:05.5]} 7. O-O {[%clk 0:03:01.3]} 7... O-O {[%clk 0:03:06.1]} 8. h3 {[%clk
0:03:02.6]} 8... Re8 {[%clk 0:03:06.4]} 9. Bc2 {[%clk 0:03:02.2]} 9... c6 {[%clk
0:02:59.4]} 10. Re1 {[%clk 0:02:58]} 10... Qe7 {[%clk 0:02:56.9]} 11. Bd2 {[%clk
0:02:49.2]} 11... Nf8 {[%clk 0:02:57]} 12. dxe5 {[%clk 0:02:47.8]} 12... dxe5
{[%clk 0:02:57.1]} 13. e4 {[%clk 0:02:47.3]} 13... Qc7 {[%clk 0:02:51.2]} 14.
Qc1 {[%clk 0:02:46.9]} 14... Ne6 {[%clk 0:02:50.5]} 15. Bh6 {[%clk 0:02:45.6]}
15... a5 {[%clk 0:02:50.5]} 16. Bxg7 {[%clk 0:02:46.2]} 16... Kxg7 {[%clk
0:02:51.6]} 17. Qe3 {[%clk 0:02:25.1]} 17... Nh5 {[%clk 0:02:48.6]} 18. Rad1
{[%clk 0:02:19.5]} 18... Nef4 {[%clk 0:02:41.9]} 19. Na4 {[%clk 0:02:14.1]}
19... Be6 {[%clk 0:02:41.2]} 20. b3 {[%clk 0:02:06.2]} 20... Qe7 {[%clk
0:02:37.3]} 21. Nxe5 {[%clk 0:01:57.7]} 21... Bxh3 {[%clk 0:02:33]} 22. Nxc6
{[%clk 0:01:29.8]} 22... bxc6 {[%clk 0:02:31.1]} 23. g3 {[%clk 0:01:03.9]} 23...
Ne6 {[%clk 0:02:25.1]} 24. f4 {[%clk 0:00:58.1]} 24... Bg4 {[%clk 0:02:19.2]}
25. Rd2 {[%clk 0:00:57.9]} 25... Rad8 {[%clk 0:02:19.4]} 26. Rf2 {[%clk
0:00:56.6]} 26... Nd4 {[%clk 0:02:17.2]} 27. Bb1 {[%clk 0:00:53.3]} 27... Qb4
{[%clk 0:02:11.9]} 28. Ref1 {[%clk 0:00:52.7]} 28... f5 {[%clk 0:02:02.6]} 29.
e5 {[%clk 0:00:49.8]} 29... Kg8 {[%clk 0:01:57.8]} 30. Kh2 {[%clk 0:00:45.5]}
30... Ng7 {[%clk 0:01:57.6]} 31. Rh1 {[%clk 0:00:34.1]} 31... Nge6 {[%clk
0:01:52.1]} 32. Bd3 {[%clk 0:00:34.5]} 32... Nf3+ {[%clk 0:01:40.7]} 33. Rxf3
{[%clk 0:00:29]} 33... Bxf3 {[%clk 0:01:42.6]} 34. Qxf3 {[%clk 0:00:30.2]} 34...
Qd2+ {[%clk 0:01:43.4]} 35. Be2 {[%clk 0:00:24.5]} 35... Nd4 {[%clk 0:01:44.1]}
0-1

[Event "*** Titled Tuesday 3|2 Blitz"]
[Site "Chess.com"]
[Date "2015.12.01"]
[Round "1"]
[White "alex_zapata"]
[Black "Ginger_GM"]
[Result "0-1"]
[WhiteElo "2170"]
[BlackElo "2476"]
[TimeControl "180+2"]
[EndTime "11:06:57 PST"]
[Termination "Ginger_GM won by resignation"]

1. e4 {[%clk 0:03:00.9]} 1... e6 {[%clk 0:02:59.3]} 2. d4 {[%clk 0:02:58.3]}
2... d5 {[%clk 0:03:00.3]} 3. Nd2 {[%clk 0:02:45]} 3... Nf6 {[%clk 0:03:00.1]}
4. Bd3 {[%clk 0:02:42.3]} 4... c5 {[%clk 0:03:00.4]} 5. exd5 {[%clk 0:02:43.6]}
5... exd5 {[%clk 0:03:00.6]} 6. dxc5 {[%clk 0:02:41.6]} 6... Bxc5 {[%clk
0:03:00.9]} 7. Ngf3 {[%clk 0:02:43.5]} 7... O-O {[%clk 0:03:01.1]} 8. O-O {[%clk
0:02:44.9]} 8... Bg4 {[%clk 0:03:01.1]} 9. h3 {[%clk 0:02:44.2]} 9... Bh5 {[%clk
0:03:00.5]} 10. Nb3 {[%clk 0:02:43.1]} 10... Bb6 {[%clk 0:02:59.5]} 11. Bg5
{[%clk 0:02:44.5]} 11... Nc6 {[%clk 0:02:55.6]} 12. c3 {[%clk 0:02:44.2]} 12...
Qd6 {[%clk 0:02:50.2]} 13. Be2 {[%clk 0:02:44.4]} 13... Ne4 {[%clk 0:02:47]} 14.
Be3 {[%clk 0:02:33.3]} 14... Bxe3 {[%clk 0:02:46.1]} 15. fxe3 {[%clk 0:02:35.2]}
15... Ng3 {[%clk 0:02:46.3]} 16. Rf2 {[%clk 0:02:34.5]} 16... Rfe8 {[%clk
0:02:39.9]} 17. Qd2 {[%clk 0:02:21.6]} 17... Ne4 {[%clk 0:02:32]} 18. Qe1 {[%clk
0:02:22.3]} 18... Nxf2 {[%clk 0:02:32.8]} 19. Qxf2 {[%clk 0:02:24.2]} 19... Rad8
{[%clk 0:02:32.1]} 20. Re1 {[%clk 0:02:21.6]} 20... Ne5 {[%clk 0:02:27.7]} 21.
Nfd4 {[%clk 0:02:11]} 21... Bxe2 {[%clk 0:02:26.7]} 22. Rxe2 {[%clk 0:02:11.8]}
22... Qg6 {[%clk 0:02:25.7]} 23. Nf5 {[%clk 0:02:10.4]} 23... Nc4 {[%clk
0:02:15.7]} 24. Nbd4 {[%clk 0:02:10.2]} 24... Re4 {[%clk 0:02:13]} 25. Qf3
{[%clk 0:02:02.4]} 25... Rde8 {[%clk 0:02:12.8]} 26. b3 {[%clk 0:02:02.1]} 26...
Nd6 {[%clk 0:02:08.9]} 27. Kh1 {[%clk 0:01:55.8]} 27... Nxf5 {[%clk 0:02:07.1]}
28. Nxf5 {[%clk 0:01:57.7]} 28... h5 {[%clk 0:01:52.5]} 29. Rd2 {[%clk
0:01:56.9]} 29... Qe6 {[%clk 0:01:47.8]} 30. Rf2 {[%clk 0:01:48]} 30... h4
{[%clk 0:01:31.8]} 31. Nd4 {[%clk 0:01:25.2]} 31... Qg6 {[%clk 0:01:29.8]} 32.
Nf5 {[%clk 0:01:25.4]} 32... R8e5 {[%clk 0:01:27.9]} 33. Rf1 {[%clk 0:01:19.5]}
33... Re6 {[%clk 0:01:26.6]} 34. Kg1 {[%clk 0:01:12.3]} 34... Qg5 {[%clk
0:01:21.3]} 35. Kh1 {[%clk 0:00:39.3]} 35... Rf6 {[%clk 0:01:20.8]} 0-1

[Event "*** Titled Tuesday 3|2 Blitz"]
[Site "Chess.com"]
[Date "2015.12.01"]
[Round "1"]
[White "Makalexa"]
[Black "Tobi-Wan-Kenobi"]
[Result "0-1"]
[WhiteElo "2068"]
[BlackElo "2353"]
[TimeControl "180+2"]
[EndTime "11:06:58 PST"]
[Termination "Tobi-Wan-Kenobi won by resignation"]

1. e3 {[%clk 0:02:57.2]} 1... Nf6 {[%clk 0:02:58.8]} 2. b3 {[%clk 0:02:57.1]}
2... g6 {[%clk 0:02:56.7]} 3. Bb2 {[%clk 0:02:57.6]} 3... Bg7 {[%clk 0:02:58.6]}
4. f4 {[%clk 0:02:57.8]} 4... O-O {[%clk 0:02:57.3]} 5. Nf3 {[%clk 0:02:58.5]}
5... d6 {[%clk 0:02:59]} 6. Bd3 {[%clk 0:02:58]} 6... c5 {[%clk 0:03:00.2]} 7.
O-O {[%clk 0:02:56]} 7... Nc6 {[%clk 0:03:01.2]} 8. c4 {[%clk 0:02:55.8]} 8...
Nb4 {[%clk 0:02:57.8]} 9. Be2 {[%clk 0:02:54.5]} 9... Bf5 {[%clk 0:02:58]} 10.
d3 {[%clk 0:02:54.9]} 10... Re8 {[%clk 0:02:38.3]} 11. e4 {[%clk 0:02:52.1]}
11... Bg4 {[%clk 0:02:36.2]} 12. Nc3 {[%clk 0:02:49.2]} 12... Bxf3 {[%clk
0:02:31.4]} 13. Bxf3 {[%clk 0:02:48]} 13... Nc6 {[%clk 0:02:31.8]} 14. Ne2
{[%clk 0:02:40.9]} 14... Nd7 {[%clk 0:02:25.9]} 15. Bxg7 {[%clk 0:02:39.1]}
15... Kxg7 {[%clk 0:02:27.8]} 16. d4 {[%clk 0:02:40.1]} 16... cxd4 {[%clk
0:02:26.5]} 17. Nxd4 {[%clk 0:02:40.4]} 17... Qb6 {[%clk 0:02:25.7]} 18. Kh1
{[%clk 0:02:20.5]} 18... Qxd4 {[%clk 0:02:23.8]} 19. Qe1 {[%clk 0:02:21]} 19...
Qc5 {[%clk 0:02:20.6]} 20. Rd1 {[%clk 0:02:20.6]} 20... e5 {[%clk 0:02:17]} 21.
f5 {[%clk 0:02:21.1]} 21... f6 {[%clk 0:02:12.9]} 22. fxg6 {[%clk 0:02:18.7]}
22... hxg6 {[%clk 0:02:12.8]} 23. Bg4 {[%clk 0:02:20.2]} 23... Nf8 {[%clk
0:02:09.2]} 24. Qh4 {[%clk 0:02:19.1]} 24... Nh7 {[%clk 0:02:07.5]} 25. Rd3
{[%clk 0:02:15.1]} 25... Nd4 {[%clk 0:02:01.1]} 26. Rh3 {[%clk 0:02:14.7]} 26...
Rh8 {[%clk 0:01:52.1]} 27. Qh6+ {[%clk 0:02:10.6]} 27... Kf7 {[%clk 0:01:53.1]}
28. Rg3 {[%clk 0:01:00.3]} 28... Rag8 {[%clk 0:01:44.4]} 29. h4 {[%clk
0:00:50.7]} 29... Ke7 {[%clk 0:01:42.3]} 30. Qd2 {[%clk 0:00:36.8]} 30... Ng5
{[%clk 0:01:36.9]} 31. h5 {[%clk 0:00:32.6]} 31... Nxe4 {[%clk 0:01:35.2]} 32.
Qe1 {[%clk 0:00:16]} 32... Nxg3+ {[%clk 0:01:34.1]} 33. Qxg3 {[%clk 0:00:16.7]}
33... gxh5 {[%clk 0:01:34.4]} 34. Qh4 {[%clk 0:00:14.6]} 34... hxg4 {[%clk
0:01:35]} 0-1

[Event "*** Titled Tuesday 3|2 Blitz"]
[Site "Chess.com"]
[Date "2015.12.01"]
[Round "1"]
[White "oggy1984"]
[Black "Tesla37"]
[Result "0-1"]
[WhiteElo "2209"]
[BlackElo "2532"]
[TimeControl "180+2"]
[EndTime "11:06:59 PST"]
[Termination "Tesla37 won on time"]

1. e4 {[%clk 0:02:52.7]} 1... c5 {[%clk 0:02:59.7]} 2. Nf3 {[%clk 0:02:52.4]}
2... e6 {[%clk 0:02:59.4]} 3. d4 {[%clk 0:02:51.9]} 3... cxd4 {[%clk 0:03:00.2]}
4. Nxd4 {[%clk 0:02:53.8]} 4... Nc6 {[%clk 0:03:01.7]} 5. Nc3 {[%clk 0:02:53.6]}
5... Qc7 {[%clk 0:03:02.6]} 6. Ndb5 {[%clk 0:02:49.8]} 6... Qb8 {[%clk
0:03:02.8]} 7. Be3 {[%clk 0:02:49.6]} 7... Nf6 {[%clk 0:02:58.4]} 8. f3 {[%clk
0:02:32.5]} 8... a6 {[%clk 0:02:58.6]} 9. Nd4 {[%clk 0:02:23.8]} 9... b5 {[%clk
0:02:53.7]} 10. Bd3 {[%clk 0:02:21.4]} 10... Bb7 {[%clk 0:02:53.2]} 11. Nxc6
{[%clk 0:02:20.8]} 11... dxc6 {[%clk 0:02:48.4]} 12. O-O {[%clk 0:02:11.2]}
12... e5 {[%clk 0:02:46.8]} 13. f4 {[%clk 0:02:03.8]} 13... Bd6 {[%clk
0:02:47.4]} 14. f5 {[%clk 0:01:59.6]} 14... c5 {[%clk 0:02:46.7]} 15. Qf3 {[%clk
0:01:56.6]} 15... c4 {[%clk 0:02:47.1]} 16. Be2 {[%clk 0:01:54.2]} 16... h6
{[%clk 0:02:21.5]} 17. a3 {[%clk 0:01:48.5]} 17... O-O {[%clk 0:02:19.4]} 18.
Qg3 {[%clk 0:01:33.4]} 18... Kh7 {[%clk 0:02:16.6]} 19. Qh4 {[%clk 0:01:28]}
19... Be7 {[%clk 0:02:17.1]} 20. Bg5 {[%clk 0:01:16]} 20... Qc7 {[%clk 0:02:14]}
21. Rf3 {[%clk 0:01:05.3]} 21... Rad8 {[%clk 0:01:56.7]} 22. Rh3 {[%clk
0:00:50]} 22... Ng8 {[%clk 0:01:57.1]} 23. Rf1 {[%clk 0:00:36.1]} 23... Bxg5
{[%clk 0:01:49]} 24. Qxg5 {[%clk 0:00:36.1]} 24... Rd6 {[%clk 0:01:47.5]} 25.
Qg4 {[%clk 0:00:15.8]} 25... Qe7 {[%clk 0:01:36.8]} 26. Kh1 {[%clk 0:00:09.3]}
26... Rfd8 {[%clk 0:01:36.2]} 27. Qf3 {[%clk 0:00:06.3]} 27... Rd2 {[%clk
0:01:35.2]} 28. Bd1 {[%clk 0:00:04.7]} 28... Nf6 {[%clk 0:01:34.8]} 29. Qe3
{[%clk 0:00:04.2]} 29... Qd6 {[%clk 0:01:32.3]} 0-1

[Event "*** Titled Tuesday 3|2 Blitz"]
[Site "Chess.com"]
[Date "2015.12.01"]
[Round "1"]
[White "Hikaru"]
[Black "chessdude"]
[Result "1-0"]
[WhiteElo "2915"]
[BlackElo "2294"]
[TimeControl "180+2"]
[EndTime "11:07:01 PST"]
[Termination "Hikaru won on time"]

1. d4 {[%clk 0:03:01.9]} 1... Nf6 {[%clk 0:03:00]} 2. Bg5 {[%clk 0:03:02.8]}
2... d5 {[%clk 0:02:58.8]} 3. Nc3 {[%clk 0:03:03.1]} 3... Nbd7 {[%clk
0:02:56.9]} 4. Qd3 {[%clk 0:03:03.2]} 4... c6 {[%clk 0:02:56.6]} 5. O-O-O {[%clk
0:03:02.9]} 5... h6 {[%clk 0:02:53.3]} 6. Bh4 {[%clk 0:03:02.3]} 6... b5 {[%clk
0:02:30.9]} 7. f3 {[%clk 0:02:29.7]} 7... b4 {[%clk 0:02:12]} 8. Nb1 {[%clk
0:02:13.6]} 8... a5 {[%clk 0:02:06.2]} 9. e4 {[%clk 0:02:14.5]} 9... Ba6 {[%clk
0:02:05.7]} 10. Qe3 {[%clk 0:02:15.5]} 10... Bxf1 {[%clk 0:02:03.3]} 11. Rxf1
{[%clk 0:02:17.4]} 11... e6 {[%clk 0:02:04.4]} 12. e5 {[%clk 0:02:15.4]} 12...
g5 {[%clk 0:02:05]} 13. Be1 {[%clk 0:02:16.7]} 13... Ng8 {[%clk 0:01:50.3]} 14.
f4 {[%clk 0:02:17.5]} 14... Ne7 {[%clk 0:01:44.4]} 15. g4 {[%clk 0:02:17.9]}
15... gxf4 {[%clk 0:01:34.4]} 16. Qxf4 {[%clk 0:02:17.8]} 16... Rh7 {[%clk
0:01:35.2]} 17. Bh4 {[%clk 0:02:11.3]} 17... Ng6 {[%clk 0:01:22.4]} 18. Bxd8
{[%clk 0:02:10.8]} 18... Nxf4 {[%clk 0:01:23.5]} 19. Rxf4 {[%clk 0:02:05.3]}
19... Rxd8 {[%clk 0:01:20.8]} 20. c3 {[%clk 0:02:06.8]} 20... Be7 {[%clk
0:01:21.5]} 21. h4 {[%clk 0:02:07.5]} 21... f6 {[%clk 0:01:18.3]} 22. exf6
{[%clk 0:02:06.5]} 22... Bxf6 {[%clk 0:01:14.7]} 23. Nf3 {[%clk 0:02:05.9]}
23... Ke7 {[%clk 0:01:09]} 24. Rg1 {[%clk 0:02:03.4]} 24... Rf8 {[%clk
0:01:06.7]} 25. Nbd2 {[%clk 0:01:59.9]} 25... bxc3 {[%clk 0:01:02.3]} 26. bxc3
{[%clk 0:02:00.7]} 26... a4 {[%clk 0:01:03.3]} 27. Kc2 {[%clk 0:02:01.8]} 27...
Bh8 {[%clk 0:01:01.6]} 28. Rxf8 {[%clk 0:02:02.5]} 28... Kxf8 {[%clk 0:01:02.8]}
29. Rb1 {[%clk 0:02:03.5]} 29... Rg7 {[%clk 0:00:58.3]} 30. Rb7 {[%clk 0:02:02]}
30... Ke8 {[%clk 0:00:52.1]} 31. g5 {[%clk 0:02:02.7]} 31... hxg5 {[%clk
0:00:45.3]} 32. Nxg5 {[%clk 0:02:04.6]} 32... Re7 {[%clk 0:00:38]} 33. Rc7
{[%clk 0:02:04.1]} 33... Kf8 {[%clk 0:00:22.8]} 34. Rxc6 {[%clk 0:02:04.8]}
34... e5 {[%clk 0:00:24.1]} 35. Rc8+ {[%clk 0:01:59.5]} 35... Kg7 {[%clk
0:00:24.4]} 36. Nf1 {[%clk 0:02:01.2]} 36... exd4 {[%clk 0:00:24.9]} 37. Ng3
{[%clk 0:02:02.3]} 37... Re5 {[%clk 0:00:07.7]} 38. cxd4 {[%clk 0:02:02.5]} 1-0

[Event "*** Titled Tuesday 3|2 Blitz"]
[Site "Chess.com"]
[Date "2015.12.01"]
[Round "1"]
[White "dretch"]
[Black "AungTZ"]
[Result "1-0"]
[WhiteElo "2385"]
[BlackElo "2095"]
[TimeControl "180+2"]
[EndTime "11:07:04 PST"]
[Termination "dretch won by resignation"]

1. d4 {[%clk 0:03:01.9]} 1... Nf6 {[%clk 0:03:00.6]} 2. c4 {[%clk 0:03:03.1]}
2... e6 {[%clk 0:03:00.5]} 3. Nc3 {[%clk 0:03:04.3]} 3... Bb4 {[%clk 0:03:01.2]}
4. Qc2 {[%clk 0:03:05.7]} 4... O-O {[%clk 0:03:00.9]} 5. e4 {[%clk 0:03:06.8]}
5... Bxc3+ {[%clk 0:03:01.5]} 6. bxc3 {[%clk 0:03:07.8]} 6... d6 {[%clk
0:03:02.3]} 7. Bd3 {[%clk 0:03:08.8]} 7... e5 {[%clk 0:03:03.2]} 8. Ne2 {[%clk
0:03:10.5]} 8... Nc6 {[%clk 0:03:03.6]} 9. O-O {[%clk 0:03:10.4]} 9... h6 {[%clk
0:03:03.3]} 10. Rb1 {[%clk 0:03:11.1]} 10... b6 {[%clk 0:03:02.5]} 11. f4 {[%clk
0:03:12.4]} 11... Re8 {[%clk 0:02:54.5]} 12. fxe5 {[%clk 0:03:04.6]} 12... dxe5
{[%clk 0:02:55.5]} 13. d5 {[%clk 0:03:06.2]} 13... Na5 {[%clk 0:02:56.4]} 14.
Ng3 {[%clk 0:03:06.5]} 14... Nb7 {[%clk 0:02:46.5]} 15. Rf3 {[%clk 0:02:16.7]}
15... Nc5 {[%clk 0:02:43.7]} 16. Bxh6 {[%clk 0:02:17.2]} 16... gxh6 {[%clk
0:02:28.4]} 17. Rbf1 {[%clk 0:02:17.8]} 17... Nh7 {[%clk 0:01:49.8]} 18. Rxf7
{[%clk 0:02:04.2]} 18... Rf8 {[%clk 0:01:50.9]} 19. Rxf8+ {[%clk 0:01:53.6]}
19... Nxf8 {[%clk 0:01:51]} 20. Qf2 {[%clk 0:01:50.8]} 20... Qe7 {[%clk
0:01:38.1]} 21. Be2 {[%clk 0:01:49.3]} 21... Bd7 {[%clk 0:01:34.9]} 22. Bh5
{[%clk 0:01:41.3]} 22... Nh7 {[%clk 0:01:35.2]} 23. Bg6 {[%clk 0:01:22.2]} 23...
Nd3 {[%clk 0:01:08]} 24. Bxh7+ {[%clk 0:01:03.1]} 24... Qxh7 {[%clk 0:01:08.5]}
25. Qf6 {[%clk 0:01:04.7]} 25... Qg7 {[%clk 0:00:57.6]} 26. Nh5 {[%clk
0:01:05.6]} 26... Qh7 {[%clk 0:00:44.4]} 27. Rf3 {[%clk 0:01:03.5]} 27... Bg4
{[%clk 0:00:26.9]} 28. Rg3 {[%clk 0:01:01.3]} 28... Qd7 {[%clk 0:00:27.9]} 29.
Qg6+ {[%clk 0:00:59.9]} 29... Kf8 {[%clk 0:00:25.5]} 30. Qxh6+ {[%clk
0:01:00.9]} 30... Ke7 {[%clk 0:00:21]} 31. Qf6+ {[%clk 0:00:59.8]} 31... Ke8
{[%clk 0:00:21.4]} 32. Ng7+ {[%clk 0:01:01.1]} 1-0

[Event "*** Titled Tuesday 3|2 Blitz"]
[Site "Chess.com"]
[Date "2015.12.01"]
[Round "1"]
[White "kharposh"]
[Black "abhijeetgupta1016"]
[Result "0-1"]
[WhiteElo "2103"]
[BlackElo "2407"]
[TimeControl "180+2"]
[EndTime "11:07:10 PST"]
[Termination "abhijeetgupta1016 won by resignation"]

1. e4 {[%clk 0:02:59.5]} 1... c5 {[%clk 0:02:59.3]} 2. Nf3 {[%clk 0:02:59.2]}
2... d6 {[%clk 0:03:00.7]} 3. d4 {[%clk 0:02:59.2]} 3... cxd4 {[%clk 0:03:01]}
4. Nxd4 {[%clk 0:03:01.1]} 4... Nf6 {[%clk 0:03:02.7]} 5. Nc3 {[%clk 0:03:01.3]}
5... Nc6 {[%clk 0:03:04.6]} 6. Bc4 {[%clk 0:03:01.7]} 6... e6 {[%clk 0:03:05.3]}
7. Bb3 {[%clk 0:03:02.6]} 7... a6 {[%clk 0:03:04.5]} 8. f4 {[%clk 0:03:03.9]}
8... Qc7 {[%clk 0:03:01.5]} 9. f5 {[%clk 0:03:00.2]} 9... Nxd4 {[%clk
0:02:44.5]} 10. Qxd4 {[%clk 0:03:00.9]} 10... Be7 {[%clk 0:02:45.5]} 11. Bg5
{[%clk 0:02:56.7]} 11... h6 {[%clk 0:02:45.2]} 12. Bh4 {[%clk 0:02:56.5]} 12...
exf5 {[%clk 0:02:41.2]} 13. exf5 {[%clk 0:02:51.2]} 13... Bxf5 {[%clk
0:02:42.1]} 14. O-O {[%clk 0:02:40.3]} 14... Be6 {[%clk 0:02:32.8]} 15. Bxf6
{[%clk 0:02:36.2]} 15... gxf6 {[%clk 0:02:28.6]} 16. Nd5 {[%clk 0:02:03.4]}
16... Bxd5 {[%clk 0:02:13.9]} 17. Bxd5 {[%clk 0:02:03.5]} 17... O-O-O {[%clk
0:02:08.8]} 18. Bxf7 {[%clk 0:01:56.1]} 18... d5 {[%clk 0:02:09.4]} 19. Kh1
{[%clk 0:01:49.2]} 19... Kb8 {[%clk 0:02:10.6]} 20. Bxd5 {[%clk 0:01:45.8]}
20... Bd6 {[%clk 0:02:09.4]} 21. Qh4 {[%clk 0:01:32.6]} 21... Bxh2 {[%clk
0:01:45.2]} 22. Qxh2 {[%clk 0:01:32.3]} 22... Qxh2+ {[%clk 0:01:45.9]} 23. Kxh2
{[%clk 0:01:32.9]} 23... Rxd5 {[%clk 0:01:47.8]} 24. Rxf6 {[%clk 0:01:28.6]}
24... Rd2 {[%clk 0:01:48.1]} 25. Rg6 {[%clk 0:01:21.6]} 25... Rxc2 {[%clk
0:01:48.6]} 26. b4 {[%clk 0:01:21.4]} 26... Rb2 {[%clk 0:01:45.1]} 27. a3 {[%clk
0:01:17.8]} 27... h5 {[%clk 0:01:46.3]} 28. Re1 {[%clk 0:01:14.4]} 28... h4
{[%clk 0:01:38.4]} 29. Re7 {[%clk 0:01:11]} 29... h3 {[%clk 0:01:38.8]} 30. Reg7
{[%clk 0:00:12.6]} 30... hxg2+ {[%clk 0:01:36.3]} 0-1